fUST/lending_fUST_20251207
["ID","MTS","AMOUNT","RATE_DAILY","PERIOD"]
[396530179,1765038231588,940.0,8.302e-05,2]
[396530180,1765038239395,940.0,8.302e-05,2]
[396530181,1765038247736,940.0,8.302e-05,2]
[396530182,1765038252397,150.0,6.817e-05,2]
[396530183,1765038252972,255.75,7.142e-05,2]
[396530184,1765038253296,383.63,7.467e-05,2]
[396530185,1765038253760,511.51,7.791e-05,2]
[396530186,1765038254316,639.38,8.116e-05,2]
[396530187,1765038255736,940.0,8.302e-05,2]
[396530188,1765038293681,1004.31,8.3e-05,2]
[396530189,1765038300253,940.0,8.302e-05,2]
[396530190,1765038308396,940.0,8.302e-05,2]
[396530192,1765038316861,1010.0,8.301e-05,2]
[396530193,1765038324410,405.43,8.251e-05,2]
[396530194,1765038324566,2607.74,8.251e-05,2]
[396530195,1765038324768,1010.0,8.301e-05,2]
[396530198,1765038332991,1010.0,8.301e-05,2]
[396530202,1765038341098,1010.0,8.301e-05,2]
[396530205,1765038348898,1010.0,8.301e-05,2]
[396530210,1765038357444,1010.0,8.301e-05,2]
[396530211,1765038361981,150.0,6.952e-05,2]
[396530212,1765038362477,240.22,7.283e-05,2]
[396530213,1765038362917,360.34,7.614e-05,2]
[396530214,1765038363442,480.45,7.945e-05,2]
[396530215,1765038363943,600.56,8.276e-05,2]
[396530216,1765038365810,480.45,7.866e-05,2]
[396530217,1765038374053,30.25,8.301e-05,2]
[396530218,1765038374125,1279.75,8.301e-05,2]
[396530219,1765038378743,1007.23,8.3e-05,2]
[396530220,1765038382016,1310.0,8.301e-05,2]
[396530221,1765038390689,1310.0,8.301e-05,2]
[396530237,1765038399039,1310.0,8.301e-05,2]
[396530266,1765038407743,570.89899141,8.301e-05,2]
[396530287,1765038414957,228.5353287,7.412e-05,2]
[396530288,1765038415634,1310.0,8.301e-05,2]
[396530289,1765038423651,1310.0,8.301e-05,2]
[396530290,1765038427793,363.59567989,7.467e-05,2]
[396530291,1765038427863,10000.01,7.467e-05,2]
[396530292,1765038427895,31078.01390001,7.467e-05,2]
[396530293,1765038432332,211.19880242,8.3e-05,2]
[396530294,1765038438712,77.05300151,8.3e-05,2]
[396530295,1765038441628,169.97,7.028e-05,2]
[396530296,1765038442076,339.94,7.363e-05,2]
[396530297,1765038443237,509.91,7.698e-05,2]
[396530298,1765038443453,-290.53443117,8.3e-05,2]
[396530299,1765038443751,679.88,8.032e-05,2]
[396530300,1765038445202,-300.0,8.3e-05,2]
[396530302,1765038448545,728.21256732,8.217e-05,2]
[396530303,1765038449221,-192.72826586,8.3e-05,2]
[396530305,1765038454563,-227.16857435,8.3e-05,2]
[396530306,1765038456352,430.19880242,8.217e-05,2]
[396530307,1765038471394,308.31572711,8.217e-05,2]
[396530311,1765038493892,300.0,8.217e-05,2]
[396530314,1765038502102,-300.0,8.3e-05,2]
[396530315,1765038502229,-94.4910464,8.3e-05,2]
[396530317,1765038503847,-214.06772009,8.3e-05,2]
[396530318,1765038505463,-231.0,8.3e-05,2]
[396530319,1765038507750,-220.0,8.3e-05,2]
[396530320,1765038509475,787.83123351,8.217e-05,2]
[396530331,1765038517921,336.83123351,8.217e-05,2]
[396530335,1765038521872,167.55,6.805e-05,2]
[396530336,1765038522348,335.09,7.129e-05,2]
[396530337,1765038522823,502.64,7.453e-05,2]
[396530339,1765038523513,670.19,7.777e-05,2]
[396530340,1765038523795,837.73,8.101e-05,2]
[396530344,1765038533032,336.83123351,8.217e-05,2]
[396530347,1765038541166,336.83123351,8.217e-05,2]
[396530348,1765038542725,250.0,0.00013109,3]
[396530349,1765038543004,250.0,0.00011817,3]
[396530351,1765038548395,206.8461797,8.286e-05,2]
[396530352,1765038557428,273.11324789,8.25e-05,2]
[396530353,1765038560648,1081.2,8.3e-05,2]
[396530354,1765038565803,273.11324789,8.25e-05,2]
[396530355,1765038581648,273.11324789,8.25e-05,2]
[396530357,1765038582678,7892.62407663,8.292e-05,2]
[396530360,1765038589863,19256.00490064,8.209e-05,2]
[396530362,1765038591190,-202.00703218,8.292e-05,2]
[396530363,1765038592773,-161.57926918,8.292e-05,2]
[396530364,1765038595084,-476.56959832,8.292e-05,2]
[396530365,1765038598568,-214.98371329,8.292e-05,2]
[396530376,1765038600111,-279.72248607,8.292e-05,2]
[396530386,1765038601900,152.75,6.615e-05,2]
[396530387,1765038602285,305.49,6.93e-05,2]
[396530388,1765038602615,458.24,7.245e-05,2]
[396530389,1765038602776,-396.70744623,8.292e-05,2]
[396530391,1765038603119,610.99,7.56e-05,2]
[396530392,1765038603638,763.73,7.875e-05,2]
[396530395,1765038604339,916.48,8.19e-05,2]
[396530399,1765038605285,-300.0,8.291e-05,2]
[396530400,1765038605397,-219.77156038,8.291e-05,2]
[396530401,1765038605632,6792.33,8.209e-05,2]
[396530402,1765038605833,10000.01,8.209e-05,2]
[396530403,1765038606044,10000.01,8.209e-05,2]
[396530404,1765038606250,10000.01,8.209e-05,2]
[396530405,1765038606377,11802.19508732,8.209e-05,2]
[396530406,1765038607542,-249.37986527,8.291e-05,2]
[396530407,1765038622033,1238.52,7e-05,2]
[396530408,1765038623011,1238.52,7.1e-05,2]
[396530409,1765038623500,1238.52,7.3e-05,2]
[396530410,1765038623658,-234.53277608,8.291e-05,2]
[396530411,1765038623883,1238.52,7.4e-05,2]
[396530412,1765038624093,1238.52,7.6e-05,2]
[396530413,1765038624320,1238.52,7.7e-05,2]
[396530414,1765038624587,1238.52,7.9e-05,2]
[396530415,1765038625070,1238.52,8e-05,2]
[396530416,1765038625506,1238.52,8.1e-05,2]
[396530417,1765038627633,249.37986527,8.208e-05,2]
[396530433,1765038632010,-306.31579827,8.291e-05,2]
[396530434,1765038632019,-138.62204471,8.292e-05,2]
[396530435,1765038632031,-80.37795529,8.292e-05,2]
[396530436,1765038632040,-9886.07882495,8.292e-05,2]
[396530437,1765038635643,306.31579827,8.208e-05,2]
[396530442,1765038637845,-593.2364271,8.292e-05,2]
[396530443,1765038637857,-573.84678999,8.292e-05,2]
[396530445,1765038637868,-472.72968921,8.292e-05,2]
[396530446,1765038637879,-285.884835,8.292e-05,2]
[396530447,1765038637989,-3050.18502718,8.292e-05,2]
[396530448,1765038638000,-14529.03535847,8.292e-05,2]
[396530452,1765038640640,-3e-08,8.292e-05,2]
[396530453,1765038640662,-5248.40096563,8.292e-05,2]
[396530454,1765038640700,-17649.84227368,8.292e-05,2]
[396530455,1765038640713,-493.40356884,8.292e-05,2]
[396530563,1765038643911,619.534,8.209e-05,2]
[396530672,1765038651606,689.59075951,8.209e-05,2]
[396530673,1765038659765,5529.31564888,8.208e-05,2]
[396530674,1765038667994,692.72237837,8.208e-05,2]
[396530675,1765038676075,692.72237837,8.208e-05,2]
[396530676,1765038676290,1134.37,6.8e-05,2]
[396530677,1765038676395,1134.37,6.9e-05,2]
[396530678,1765038676692,1134.37,7e-05,2]
[396530679,1765038677021,1134.37,7.2e-05,2]
[396530680,1765038677349,1134.37,7.3e-05,2]
[396530681,1765038677734,1134.37,7.5e-05,2]
[396530682,1765038678038,1134.37,7.6e-05,2]
[396530683,1765038678324,1134.37,7.8e-05,2]
[396530684,1765038678591,1134.37,7.9e-05,2]
[396530685,1765038678956,1134.37,8.1e-05,2]
[396530686,1765038679379,1134.37,8.2e-05,2]
[396530689,1765038684791,261.56,6.944e-05,2]
[396530690,1765038685184,523.13,7.275e-05,2]
[396530691,1765038686266,784.69,7.605e-05,2]
[396530692,1765038686394,-500.0,8.291e-05,2]
[396530693,1765038686435,-500.0,8.291e-05,2]
[396530694,1765038686464,-328.62237325,8.291e-05,2]
[396530695,1765038686502,1046.25,7.936e-05,2]
[396530696,1765038687537,-372.84,8.267e-05,2]
[396530697,1765038689691,-232.95761672,8.267e-05,2]
[396530698,1765038691258,-372.05535408,8.267e-05,2]
[396530699,1765038692811,-218.56464592,8.267e-05,2]
[396530700,1765038703758,354.58,8.126e-05,2]
[396530702,1765038736944,897.59,6.8e-05,2]
[396530703,1765038737201,897.59,6.9e-05,2]
[396530704,1765038737488,897.59,7e-05,2]
[396530705,1765038737773,897.59,7.2e-05,2]
[396530706,1765038738051,897.59,7.3e-05,2]
[396530707,1765038738911,897.59,7.5e-05,2]
[396530708,1765038738999,897.59,7.6e-05,2]
[396530709,1765038739099,897.59,7.8e-05,2]
[396530710,1765038739410,897.59,7.9e-05,2]
[396530711,1765038739809,897.59,8.1e-05,2]
[396530712,1765038740211,897.59,8.2e-05,2]
[396530742,1765038769966,225.31,6.619e-05,2]
[396530743,1765038770817,450.62,6.934e-05,2]
[396530744,1765038770961,675.93,7.25e-05,2]
[396530745,1765038771190,901.24,7.565e-05,2]
[396530746,1765038771596,1126.54,7.88e-05,2]
[396530747,1765038771991,1351.85,8.195e-05,2]
[396530750,1765038773080,232.95761672,8.207e-05,2]
[396530774,1765038797886,700.12,6.8e-05,2]
[396530775,1765038798196,700.12,6.9e-05,2]
[396530776,1765038798724,700.12,7e-05,2]
[396530777,1765038799040,700.12,7.2e-05,2]
[396530778,1765038799368,700.12,7.3e-05,2]
[396530779,1765038799648,700.12,7.5e-05,2]
[396530780,1765038800024,700.12,7.6e-05,2]
[396530781,1765038801124,700.12,7.8e-05,2]
[396530782,1765038801435,700.12,7.9e-05,2]
[396530783,1765038801773,700.12,8.1e-05,2]
[396530784,1765038802562,700.12,8.2e-05,2]
[396530792,1765038816790,-166.21,8.289e-05,2]
[396530793,1765038820265,-151.95,8.289e-05,2]
[396530796,1765038824243,-152.47,8.289e-05,2]
[396530797,1765038826399,-158.91,8.289e-05,2]
[396530798,1765038829740,-151.08,8.289e-05,2]
[396530799,1765038831223,-152.72,8.289e-05,2]
[396530800,1765038832894,-160.24,8.289e-05,2]
[396530801,1765038834500,-106.42,8.289e-05,2]
[396530802,1765038834531,-53.82,8.289e-05,2]
[396530803,1765038836632,-166.21,8.289e-05,2]
[396530804,1765038839403,-79.97,8.289e-05,2]
[396530805,1765038839435,-86.24,8.289e-05,2]
[396530806,1765038840949,-166.21,8.289e-05,2]
[396530807,1765038846280,-47.55,8.289e-05,2]
[396530808,1765038846312,-104.48,8.289e-05,2]
[396530809,1765038848126,165.09,6.806e-05,2]
[396530810,1765038848553,330.18,7.13e-05,2]
[396530811,1765038848964,495.27,7.454e-05,2]
[396530812,1765038849387,660.36,7.778e-05,2]
[396530813,1765038849811,825.45,8.102e-05,2]
[396530814,1765038855909,584.18,6.8e-05,2]
[396530815,1765038856216,584.18,6.9e-05,2]
[396530816,1765038856527,584.18,7e-05,2]
[396530817,1765038856803,584.18,7.2e-05,2]
[396530818,1765038857273,584.18,7.3e-05,2]
[396530819,1765038857604,584.18,7.5e-05,2]
[396530820,1765038858068,584.18,7.6e-05,2]
[396530821,1765038858370,584.18,7.8e-05,2]
[396530822,1765038858688,584.18,7.9e-05,2]
[396530823,1765038858993,584.18,8.1e-05,2]
[396530824,1765038859467,584.18,8.2e-05,2]
[396530825,1765038861318,-195.52,8.289e-05,2]
[396530826,1765038861347,-58.38009219,8.29e-05,2]
[396530827,1765038863549,-229.9731557,8.29e-05,2]
[396530828,1765038863575,-284.45094438,8.29e-05,2]
[396530829,1765038874699,153.9205775,0.0001311,3]
[396530830,1765038874884,2677.73915733,8.207e-05,2]
[396530831,1765038882969,721.10275029,8.206e-05,2]
[396530832,1765038898628,1500.48,8.206e-05,2]
[396530833,1765038907716,3863.23255654,8.206e-05,2]
[396530834,1765038916635,504.09,6.8e-05,2]
[396530835,1765038916937,504.09,6.9e-05,2]
[396530836,1765038917225,229.27553584,7e-05,2]
[396530837,1765038917256,274.81446416,7e-05,2]
[396530838,1765038918225,504.09,7.2e-05,2]
[396530839,1765038918351,504.09,7.3e-05,2]
[396530840,1765038918503,504.09,7.5e-05,2]
[396530841,1765038918655,504.09,7.6e-05,2]
[396530842,1765038918890,504.09,7.8e-05,2]
[396530843,1765038919208,504.09,7.9e-05,2]
[396530844,1765038919533,504.09,8.1e-05,2]
[396530845,1765038919817,504.09,8.2e-05,2]
[396530846,1765038923133,1500.0,8.205e-05,2]
[396530847,1765038926441,162.68,7.025e-05,2]
[396530848,1765038926945,325.36,7.36e-05,2]
[396530849,1765038927390,488.04,7.694e-05,2]
[396530850,1765038927789,650.72,8.029e-05,2]
[396530851,1765038930698,1500.0,8.205e-05,2]
[396530852,1765038945278,1500.0,8.205e-05,2]
[396530853,1765038953003,1500.0,8.205e-05,2]
[396530854,1765038968081,1500.0,8.205e-05,2]
[396530855,1765038979366,497.66,6.7e-05,2]
[396530856,1765038979734,497.66,6.8e-05,2]
[396530857,1765038980013,497.66,7e-05,2]
[396530858,1765038980342,497.66,7.1e-05,2]
[396530859,1765038980697,497.66,7.3e-05,2]
[396530860,1765038981038,497.66,7.4e-05,2]
[396530861,1765038981799,497.66,7.6e-05,2]
[396530862,1765038982043,497.66,7.7e-05,2]
[396530863,1765038982146,497.66,7.9e-05,2]
[396530864,1765038982638,497.66,8e-05,2]
[396530865,1765038982879,497.66,8.2e-05,2]
[396530866,1765038990812,1169.53242872,8.205e-05,2]
[396530867,1765039004430,154.59,6.619e-05,2]
[396530868,1765039004888,309.18,6.935e-05,2]
[396530869,1765039005234,463.77,7.25e-05,2]
[396530870,1765039005661,618.35,7.565e-05,2]
[396530871,1765039006083,772.94,7.88e-05,2]
[396530872,1765039006535,927.53,8.195e-05,2]
[396530901,1765039027794,881.68114,7.357e-05,2]
[396530912,1765039039582,435.74,6.7e-05,2]
[396530913,1765039039950,435.74,6.8e-05,2]
[396530914,1765039040281,435.74,7e-05,2]
[396530915,1765039040545,435.74,7.1e-05,2]
[396530916,1765039040902,435.74,7.3e-05,2]
[396530917,1765039041136,435.74,7.4e-05,2]
[396530918,1765039041485,435.74,7.6e-05,2]
[396530919,1765039041780,435.74,7.7e-05,2]
[396530920,1765039042081,435.74,7.9e-05,2]
[396530921,1765039042377,435.74,8e-05,2]
[396530922,1765039042677,435.74,8.2e-05,2]
[396530931,1765039083271,150.0,6.62e-05,2]
[396530932,1765039083671,249.45,6.935e-05,2]
[396530933,1765039084088,374.18,7.25e-05,2]
[396530934,1765039084483,498.9,7.565e-05,2]
[396530935,1765039084960,623.63,7.881e-05,2]
[396530936,1765039085383,748.35,8.196e-05,2]
[396530944,1765039096165,339.87,6.7e-05,2]
[396530945,1765039096442,339.87,6.8e-05,2]
[396530946,1765039096751,339.87,7e-05,2]
[396530947,1765039097219,339.87,7.1e-05,2]
[396530948,1765039097595,339.87,7.3e-05,2]
[396530949,1765039098507,339.87,7.4e-05,2]
[396530950,1765039098607,339.87,7.6e-05,2]
[396530951,1765039098813,339.87,7.7e-05,2]
[396530952,1765039099024,339.87,7.9e-05,2]
[396530953,1765039099308,339.87,8e-05,2]
[396530954,1765039099580,339.87,8.2e-05,2]
[396530961,1765039156985,265.1,6.7e-05,2]
[396530962,1765039157372,265.1,6.8e-05,2]
[396530963,1765039157651,265.1,7e-05,2]
[396530964,1765039158192,265.1,7.1e-05,2]
[396530966,1765039158491,265.1,7.3e-05,2]
[396530967,1765039158945,265.1,7.4e-05,2]
[396530968,1765039159174,265.1,7.6e-05,2]
[396530969,1765039159553,265.1,7.7e-05,2]
[396530970,1765039159878,265.1,7.9e-05,2]
[396530972,1765039160175,265.1,8e-05,2]
[396530973,1765039161600,265.1,8.2e-05,2]
[396530974,1765039161658,150.0,7.213e-05,2]
[396530975,1765039161816,182.14,7.557e-05,2]
[396530976,1765039162145,273.21,7.9e-05,2]
[396530977,1765039162630,364.27,8.244e-05,2]
[396530980,1765039215174,270.66,6.8e-05,2]
[396530981,1765039215480,270.66,6.9e-05,2]
[396530982,1765039215799,270.66,7e-05,2]
[396530983,1765039216072,270.66,7.2e-05,2]
[396530984,1765039216478,270.66,7.3e-05,2]
[396530985,1765039216856,270.66,7.5e-05,2]
[396530986,1765039217196,270.66,7.6e-05,2]
[396530987,1765039217515,270.66,7.8e-05,2]
[396530988,1765039217863,270.66,7.9e-05,2]
[396530989,1765039218177,270.66,8.1e-05,2]
[396530990,1765039218475,270.66,8.2e-05,2]
[396530998,1765039239476,150.0,6.787e-05,2]
[396530999,1765039239863,165.09,7.11e-05,2]
[396531000,1765039240420,247.64,7.434e-05,2]
[396531001,1765039240666,330.18,7.757e-05,2]
[396531002,1765039241072,412.73,8.08e-05,2]
[396531017,1765039277950,231.24,6.8e-05,2]
[396531018,1765039278102,231.24,6.9e-05,2]
[396531019,1765039278183,231.24,7e-05,2]
[396531020,1765039278429,231.24,7.2e-05,2]
[396531021,1765039278774,231.24,7.3e-05,2]
[396531022,1765039279153,231.24,7.5e-05,2]
[396531023,1765039279480,231.24,7.6e-05,2]
[396531024,1765039279777,231.24,7.8e-05,2]
[396531025,1765039280107,231.24,7.9e-05,2]
[396531026,1765039280460,231.24,8.1e-05,2]
[396531027,1765039280742,231.24,8.2e-05,2]
[396531028,1765039284808,220.0,8e-05,2]
[396531054,1765039316018,150.0,6.858e-05,2]
[396531055,1765039316419,150.0,7.184e-05,2]
[396531056,1765039316827,197.79,7.511e-05,2]
[396531057,1765039317275,263.71,7.837e-05,2]
[396531058,1765039317667,329.64,8.164e-05,2]
[396531059,1765039335919,180.37,6.7e-05,2]
[396531060,1765039336299,180.37,6.8e-05,2]
[396531061,1765039336581,180.37,7e-05,2]
[396531062,1765039336858,180.37,7.1e-05,2]
[396531063,1765039337191,180.37,7.3e-05,2]
[396531064,1765039337600,180.37,7.4e-05,2]
[396531065,1765039337930,180.37,7.6e-05,2]
[396531066,1765039338221,180.37,7.7e-05,2]
[396531067,1765039338501,180.37,7.9e-05,2]
[396531068,1765039338780,180.37,8e-05,2]
[396531069,1765039339284,180.37,8.2e-05,2]
[396531070,1765039393995,150.0,6.86e-05,2]
[396531071,1765039394182,150.0,7.186e-05,2]
[396531072,1765039394363,156.12,7.513e-05,2]
[396531073,1765039394754,208.17,7.84e-05,2]
[396531074,1765039395146,260.21,8.166e-05,2]
[396531075,1765039395698,152.92,6.7e-05,2]
[396531076,1765039396022,152.92,6.9e-05,2]
[396531077,1765039396508,152.92,7e-05,2]
[396531078,1765039396902,152.92,7.2e-05,2]
[396531079,1765039397214,152.92,7.3e-05,2]
[396531080,1765039397499,83.78,7.5e-05,2]
[396531081,1765039397690,69.14,7.5e-05,2]
[396531082,1765039397837,152.92,7.7e-05,2]
[396531083,1765039398138,152.92,7.8e-05,2]
[396531084,1765039398420,152.92,8e-05,2]
[396531085,1765039398704,152.92,8.2e-05,2]
[396531086,1765039447095,3571.6640567,7.347e-05,2]
[396531097,1765039456697,152.92,6.7e-05,2]
[396531102,1765039457569,152.92,6.9e-05,2]
[396531104,1765039457641,152.92,7.1e-05,2]
[396531105,1765039457716,152.92,7.3e-05,2]
[396531107,1765039458004,152.92,7.5e-05,2]
[396531108,1765039458270,152.92,7.7e-05,2]
[396531109,1765039458533,152.92,8e-05,2]
[396531110,1765039458840,152.92,8.2e-05,2]
[396531111,1765039459870,286.95063756,7.592e-05,2]
[396531112,1765039463694,-300.0,8.284e-05,2]
[396531113,1765039469128,150.0,6.875e-05,2]
[396531114,1765039469521,150.0,7.202e-05,2]
[396531115,1765039469907,150.0,7.529e-05,2]
[396531116,1765039470316,161.1,7.857e-05,2]
[396531117,1765039470751,201.38,8.184e-05,2]
[396531118,1765039491479,-285.61642884,8.284e-05,2]
[396531119,1765039493139,-36.42495659,8.284e-05,2]
[396531120,1765039493160,-185.55479514,8.284e-05,2]
[396531121,1765039496922,-207.63960312,8.284e-05,2]
[396531122,1765039498880,-5.8669666,8.284e-05,2]
[396531123,1765039498904,-500.0,8.284e-05,2]
[396531124,1765039498925,-53.95735767,8.284e-05,2]
[396531125,1765039500141,-154.58447156,8.284e-05,2]
[396531126,1765039502315,-218.56464592,8.284e-05,2]
[396531127,1765039502698,300.0,8.283e-05,2]
[396531128,1765039504398,-72.89352485,8.284e-05,2]
[396531129,1765039504425,-326.64030813,8.284e-05,2]
[396531130,1765039505916,-173.35969187,8.284e-05,2]
[396531131,1765039505938,-104.93045408,8.284e-05,2]
[396531132,1765039508103,-265.73656222,8.284e-05,2]
[396531133,1765039509380,1200.0,8.283e-05,2]
[396531134,1765039511304,999.60015994,8.283e-05,2]
[396531135,1765039511484,-129.3329837,8.284e-05,2]
[396531136,1765039511507,-24.59864798,8.284e-05,2]
[396531137,1765039512180,152.92,7e-05,2]
[396531138,1765039512496,152.92,7.3e-05,2]
[396531139,1765039512749,152.92,7.5e-05,2]
[396531140,1765039513108,152.92,7.8e-05,2]
[396531141,1765039513612,152.92,8e-05,2]
[396531142,1765039521281,-162.20338691,8.284e-05,2]
[396531143,1765039524024,-218.47369442,8.284e-05,2]
[396531144,1765039526190,-94.72427069,8.284e-05,2]
[396531145,1765039526217,-125.2532447,8.284e-05,2]
[396531146,1765039528343,-275.01792087,8.284e-05,2]
[396531147,1765039529874,-99.72883443,8.284e-05,2]
[396531148,1765039529901,-65.6101336,8.284e-05,2]
[396531149,1765039532647,-345.9150314,8.284e-05,2]
[396531150,1765039536193,426.59211273,8.201e-05,2]
[396531151,1765039542207,150.0,6.687e-05,2]
[396531152,1765039542599,150.0,7.006e-05,2]
[396531153,1765039542982,150.0,7.324e-05,2]
[396531154,1765039543552,150.0,7.643e-05,2]
[396531155,1765039543859,150.0,7.961e-05,2]
[396531156,1765039544125,440.3568889,8.201e-05,2]
[396531157,1765039544268,179.61,8.28e-05,2]
[396531158,1765039551279,-88.474835,8.284e-05,2]
[396531159,1765039551302,-84.87921449,8.284e-05,2]
[396531160,1765039552837,-415.12078551,8.284e-05,2]
[396531161,1765039552861,-306.00234188,8.284e-05,2]
[396531162,1765039555509,-235.60170719,8.284e-05,2]
[396531163,1765039557183,-8.39595093,8.284e-05,2]
[396531164,1765039557208,-154.2308619,8.284e-05,2]
[396531165,1765039559389,1130.07888407,8.201e-05,2]
[396531166,1765039561607,-212.74402909,8.284e-05,2]
[396531167,1765039562561,300.0,8.283e-05,2]
[396531168,1765039563126,-133.02510901,8.284e-05,2]
[396531169,1765039563150,-221.52844626,8.284e-05,2]
[396531178,1765039565284,-205.91290897,8.284e-05,2]
[396531190,1765039569811,150.88,7e-05,2]
[396531192,1765039570095,150.88,7.2e-05,2]
[396531193,1765039571009,150.88,7.3e-05,2]
[396531194,1765039571388,150.88,7.5e-05,2]
[396531195,1765039571681,150.88,7.6e-05,2]
[396531196,1765039572038,150.88,7.8e-05,2]
[396531197,1765039572312,150.88,7.9e-05,2]
[396531198,1765039572916,150.88,8.1e-05,2]
[396531199,1765039573379,150.88,8.2e-05,2]
[396531271,1765039581676,935.83730616,8.201e-05,2]
[396531303,1765039590721,158.0,0.000131,3]
[396531317,1765039592787,1215.4146482,8.185e-05,2]
[396531319,1765039592814,10000.01,8.185e-05,2]
[396531321,1765039592841,10000.01,8.185e-05,2]
[396531323,1765039592866,10000.01,8.185e-05,2]
[396531325,1765039592893,10000.01,8.185e-05,2]
[396531326,1765039592918,10000.01,8.185e-05,2]
[396531328,1765039592945,10000.01,8.185e-05,2]
[396531330,1765039592972,10000.01,8.185e-05,2]
[396531334,1765039593170,10000.01,8.185e-05,2]
[396531335,1765039593196,10000.01,8.185e-05,2]
[396531336,1765039593235,461123.27948639,8.185e-05,2]
[396531337,1765039593334,158.0,0.000131,3]
[396531339,1765039594494,158.0,0.000131,3]
[396531354,1765039611295,-176.85055349,8.185e-05,2]
[396531355,1765039612814,150.0,6.687e-05,2]
[396531356,1765039613244,150.0,7.005e-05,2]
[396531357,1765039613656,150.0,7.324e-05,2]
[396531358,1765039614178,150.0,7.642e-05,2]
[396531359,1765039614219,-327.89807133,8.185e-05,2]
[396531360,1765039614896,150.0,7.961e-05,2]
[396531361,1765039615579,-474.00251374,8.185e-05,2]
[396531362,1765039618162,462.30402345,8.103e-05,2]
[396531363,1765039619981,-312.50812098,8.185e-05,2]
[396531364,1765039622043,-229.13565306,8.185e-05,2]
[396531365,1765039622687,300.0,8.184e-05,2]
[396531366,1765039625564,-283.23541344,8.185e-05,2]
[396531367,1765039629191,-158.67369741,8.185e-05,2]
[396531368,1765039635043,152.54,6.6e-05,2]
[396531369,1765039635419,152.54,6.8e-05,2]
[396531370,1765039636340,152.54,7e-05,2]
[396531371,1765039636541,152.54,7.1e-05,2]
[396531372,1765039636680,152.54,7.3e-05,2]
[396531373,1765039636779,152.54,7.5e-05,2]
[396531374,1765039637102,152.54,7.6e-05,2]
[396531375,1765039637417,152.54,7.8e-05,2]
[396531376,1765039637665,152.54,8e-05,2]
[396531377,1765039641219,-184.44347119,8.185e-05,2]
[396531378,1765039643279,-189.28072249,8.185e-05,2]
[396531379,1765039649802,200.0,0.000109,3]
[396531380,1765039657485,-215.10551669,8.185e-05,2]
[396531381,1765039679193,640.0,8.184e-05,2]
[396531382,1765039682774,300.0,8.184e-05,2]
[396531383,1765039683656,150.0,6.778e-05,2]
[396531384,1765039684035,150.0,7.101e-05,2]
[396531385,1765039684441,150.0,7.424e-05,2]
[396531386,1765039684861,150.0,7.747e-05,2]
[396531387,1765039698844,150.37,6.6e-05,2]
[396531388,1765039699076,150.37,6.8e-05,2]
[396531389,1765039699702,150.37,7e-05,2]
[396531390,1765039699894,150.37,7.1e-05,2]
[396531391,1765039700046,150.37,7.3e-05,2]
[396531392,1765039700521,150.37,7.5e-05,2]
[396531393,1765039700711,150.37,7.6e-05,2]
[396531394,1765039701057,150.37,7.8e-05,2]
[396531395,1765039701361,150.37,8e-05,2]
[396531396,1765039701761,400.0,0.000109,3]
[396531397,1765039713028,184.44347119,8.184e-05,2]
[396531398,1765039713057,343.53561421,8.184e-05,2]